fUSD/lending_fUSD_20240613
["ID","MTS","AMOUNT","RATE_DAILY","PERIOD"]
[329353921,1718277047608,-243.40405499,0.00024498,2]
[329353922,1718277047629,-500.0,0.00024498,2]
[329353923,1718277047684,-555.03,0.00024498,2]
[329353924,1718277047698,-1924.86,0.00024498,2]
[329353925,1718277047708,-500.0,0.00024498,2]
[329353926,1718277047752,-500.0,0.00024498,2]
[329353927,1718277047763,-1949.34,0.00024498,2]
[329353928,1718277047773,-500.0,0.00024498,2]
[329353929,1718277047792,-500.0,0.00024498,2]
[329353930,1718277047818,-3080.34,0.00024498,2]
[329353931,1718277047831,-500.0,0.00024498,2]
[329353932,1718277047843,-500.0,0.00024498,2]
[329353933,1718277047854,-500.0,0.00024498,2]
[329353934,1718277047873,-500.0,0.00024498,2]
[329353935,1718277047903,-500.0,0.00024498,2]
[329353936,1718277047923,-559.02179665,0.00024498,2]
[329353937,1718277047956,-12122.07,0.00024498,2]
[329353938,1718277047978,-508.79347913,0.00024498,2]
[329353939,1718277047992,-508.06883679,0.00024498,2]
[329353940,1718277048004,-500.0,0.00024498,2]
[329353941,1718277048017,-502.54641571,0.00024498,2]
[329353942,1718277048033,-504.92912044,0.00024498,2]
[329353943,1718277048049,-907.62,0.00024498,2]
[329353944,1718277048063,-504.69891926,0.00024498,2]
[329353945,1718277048075,-500.0,0.00024498,2]
[329353946,1718277048094,-500.0,0.00024498,2]
[329353947,1718277048115,-503.90217673,0.00024498,2]
[329353948,1718277048137,-508.38307537,0.00024498,2]
[329353949,1718277048154,-525.39,0.00024498,2]
[329353950,1718277048170,-508.2799411,0.00024498,2]
[329353951,1718277048190,-500.0,0.00024498,2]
[329353952,1718277048206,-506.55990889,0.00024498,2]
[329353953,1718277048234,-500.0,0.00024498,2]
[329353954,1718277048248,-505.95773427,0.00024498,2]
[329353955,1718277048261,-985.91,0.00024498,2]
[329353956,1718277048273,-500.0,0.00024498,2]
[329353957,1718277048287,-500.0,0.00024498,2]
[329353958,1718277048298,-511.86032636,0.00024498,2]
[329353959,1718277048312,-500.0,0.00024498,2]
[329353960,1718277048328,-500.0,0.00024498,2]
[329353961,1718277048340,-2729.07,0.00024498,2]
[329353962,1718277048356,-500.0,0.00024498,2]
[329353963,1718277048373,-502.87763052,0.00024498,2]
[329353964,1718277048390,-500.0,0.00024498,2]
[329353965,1718277048407,-511.89617511,0.00024498,2]
[329353966,1718277048425,-500.0,0.00024498,2]
[329353967,1718277048463,-503.14761534,0.00024498,2]
[329353968,1718277048481,-506.74492219,0.00024498,2]
[329353969,1718277048499,-2142.51618757,0.00024498,2]
[329353973,1718277049564,-500.0,0.00024382,2]
[329353974,1718277049584,-3889.54872453,0.00024398,2]
[329353975,1718277049611,-2193.99607547,0.00024398,2]
[329353976,1718277049624,-500.0,0.00024496,2]
[329353977,1718277049639,-921.49381243,0.00024498,2]
[329353978,1718277049650,-500.0,0.00024498,2]
[329353982,1718277049689,-503.14064614,0.00024498,2]
[329353984,1718277049713,-502.51356319,0.00024498,2]
[329353986,1718277049726,-640.1,0.00024498,2]
[329353989,1718277049837,-505.54978975,0.00024498,2]
[329353991,1718277049859,-500.0,0.00024498,2]
[329353993,1718277049876,-621.04799883,0.00024498,2]
[329353995,1718277049896,-500.0,0.00024498,2]
[329353997,1718277049913,-508.24307133,0.00024498,2]
[329353999,1718277049925,-3563.96,0.00024498,2]
[329354001,1718277049939,-530.74626628,0.00024498,2]
[329354004,1718277049967,-505.60483163,0.00024498,2]
[329354006,1718277049980,-510.72657479,0.00024498,2]
[329354008,1718277049991,-500.0,0.00024498,2]
[329354010,1718277050006,-500.0,0.00024498,2]
[329354013,1718277050026,-512.69892123,0.00024498,2]
[329354016,1718277050049,-513.57412428,0.00024498,2]
[329354018,1718277050065,-504.71077762,0.00024498,2]
[329354021,1718277050079,-508.34394316,0.00024498,2]
[329354023,1718277050103,-165.471525,0.00024498,2]
[329354025,1718277050123,-517.3290873,0.00024498,2]
[329354026,1718277050135,-500.0,0.00024498,2]
[329354028,1718277050150,-500.0,0.00024498,2]
[329354030,1718277050164,-500.0,0.00024498,2]
[329354032,1718277050189,-323.08860173,0.00024498,2]
[329354035,1718277050238,-469.41480075,0.00024498,2]
[329354036,1718277050251,-500.0,0.00024498,2]
[329354038,1718277050266,-500.0,0.00024498,2]
[329354040,1718277050285,-500.0,0.00024498,2]
[329354042,1718277050299,-2850.36,0.00024498,2]
[329354044,1718277050312,-430.56913886,0.00024498,2]
[329354046,1718277050328,-504.03069938,0.00024498,2]
[329354048,1718277050340,-601.29999469,0.00024498,2]
[329354049,1718277050353,-502.46510329,0.00024498,2]
[329354051,1718277050375,-442.63475513,0.00024498,2]
[329354053,1718277050386,-520.94656409,0.00024498,2]
[329354055,1718277050398,-510.98448084,0.00024498,2]
[329354057,1718277050415,-503.08691893,0.00024498,2]
[329354059,1718277050427,-510.66958183,0.00024498,2]
[329354061,1718277050440,-500.0,0.00024498,2]
[329354063,1718277050467,-508.14049676,0.00024498,2]
[329354065,1718277050494,-508.9946219,0.00024498,2]
[329354067,1718277050510,-512.87287191,0.00024498,2]
[329354069,1718277050524,-179.44051199,0.00024498,2]
[329354070,1718277050542,-1054.64200199,0.00024498,2]
[329354072,1718277050555,-499.99,0.00024499,2]
[329354075,1718277050575,-150.0,0.00024499,10]
[329354077,1718277050597,-649.43721582,0.00024499,2]
[329354079,1718277050618,-300.8429916,0.00024499,2]
[329354080,1718277050636,-307.80116966,0.00024499,2]
[329354082,1718277050647,-502.74191045,0.00024499,2]
[329354084,1718277050661,-356.39968126,0.00024499,2]
[329354085,1718277050674,-500.0,0.00024499,2]
[329354088,1718277050700,-500.0,0.00024499,2]
[329354090,1718277050713,-500.0,0.00024499,2]
[329354093,1718277050732,-599.94941161,0.00024499,2]
[329354095,1718277050747,-343.77164055,0.00024499,2]
[329354096,1718277050772,-500.0,0.00024499,2]
[329354098,1718277050785,-500.0,0.00024499,2]
[329354099,1718277050797,-507.26725776,0.00024499,2]
[329354101,1718277050810,-500.0,0.00024499,2]
[329354103,1718277050832,-500.0,0.00024499,2]
[329354105,1718277050843,-500.0,0.00024499,2]
[329354107,1718277050870,-500.0,0.00024499,2]
[329354109,1718277050887,-500.0,0.00024499,2]
[329354111,1718277050905,-500.0,0.00024499,2]
[329354113,1718277050926,-500.0,0.00024499,2]
[329354115,1718277050947,-325.76103302,0.00024499,2]
[329354117,1718277050964,-500.0,0.00024499,2]
[329354119,1718277050986,-500.0,0.00024499,2]
[329354121,1718277051010,-500.0,0.00024499,2]
[329354123,1718277051041,-500.0,0.00024499,2]
[329354126,1718277051061,-500.0,0.00024499,2]
[329354128,1718277051075,-513.95149647,0.00024499,2]
[329354130,1718277051093,-500.0,0.00024499,2]
[329354132,1718277051109,-500.0,0.00024499,2]
[329354134,1718277051132,-500.0,0.00024499,2]
[329354137,1718277051153,-500.0,0.00024499,2]
[329354138,1718277051164,-513.44139218,0.00024499,2]
[329354140,1718277051178,-500.0,0.00024499,2]
[329354143,1718277051194,-531.80102812,0.00024499,2]
[329354144,1718277051215,-500.0,0.00024499,2]
[329354146,1718277051234,-291.55313651,0.00024499,2]
[329354148,1718277051248,-503.18473231,0.00024499,2]
[329354150,1718277051261,-500.0,0.00024499,2]
[329354153,1718277051292,-500.0,0.00024499,2]
[329354154,1718277051304,-521.30897343,0.00024499,2]
[329354156,1718277051316,-543.44,0.00024499,2]
[329354158,1718277051327,-500.0,0.00024499,2]
[329354161,1718277051342,-500.0,0.00024499,2]
[329354162,1718277051353,-500.0,0.00024499,2]
[329354164,1718277051377,-500.0,0.00024499,2]
[329354167,1718277051395,-500.0,0.00024499,2]
[329354168,1718277051407,-500.0,0.00024499,2]
[329354171,1718277051427,-500.0,0.00024499,2]
[329354173,1718277051450,-500.0,0.00024499,2]
[329354175,1718277051463,-500.0,0.00024499,2]
[329354176,1718277051499,-500.0,0.00024499,2]
[329354178,1718277051512,-500.0,0.00024499,2]
[329354180,1718277051539,-500.0,0.00024499,2]
[329354182,1718277051553,-500.00134863,0.00024499,2]
[329354184,1718277051570,-500.0,0.00024499,2]
[329354186,1718277051585,-500.0,0.00024499,2]
[329354188,1718277051602,-547.66916667,0.00024499,2]
[329354190,1718277051619,-500.0,0.00024499,2]
[329354191,1718277051630,-500.0,0.00024499,2]
[329354194,1718277051644,-557.5972717,0.00024499,2]
[329354196,1718277051667,-500.0,0.00024499,2]
[329354198,1718277051679,-500.0,0.00024499,2]
[329354200,1718277051696,-546.55564172,0.00024499,2]
[329354202,1718277051708,-511.37564729,0.00024499,2]
[329354204,1718277051725,-500.0,0.00024499,2]
[329354206,1718277051738,-500.0,0.00024499,2]
[329354208,1718277051751,-500.0,0.00024499,2]
[329354210,1718277051762,-527.79216755,0.00024499,2]
[329354212,1718277051773,-500.0,0.00024499,2]
[329354213,1718277051784,-500.0,0.00024499,2]
[329354215,1718277051796,-545.19,0.00024499,2]
[329354218,1718277051807,-500.0,0.00024499,2]
[329354219,1718277051818,-476.90094979,0.00024499,2]
[329354222,1718277051830,-512.41557028,0.00024499,2]
[329354223,1718277051842,-541.40036075,0.00024499,2]
[329354225,1718277051854,-500.0,0.00024499,2]
[329354227,1718277051869,-500.0,0.00024499,2]
[329354229,1718277051885,-384.77078025,0.00024499,2]
[329354231,1718277051897,-500.0,0.00024499,2]
[329354233,1718277051912,-500.0,0.00024499,2]
[329354235,1718277051937,-500.0,0.00024499,2]
[329354238,1718277051964,-500.0,0.00024499,2]
[329354240,1718277051977,-500.0,0.00024499,2]
[329354242,1718277051989,-500.0,0.00024499,2]
[329354243,1718277052002,-500.0,0.00024499,2]
[329354245,1718277052016,-240.35040116,0.00024499,2]
[329354246,1718277052032,-500.0,0.00024499,2]
[329354248,1718277052047,-500.0,0.00024499,2]
[329354250,1718277052059,-544.7585553,0.00024499,2]
[329354252,1718277052080,-270.46014062,0.00024499,2]
[329354254,1718277052094,-500.0,0.00024499,2]
[329354255,1718277052112,-500.0,0.00024499,2]
[329354257,1718277052134,-866.32,0.00024499,2]
[329354259,1718277052152,-500.0,0.00024499,2]
[329354262,1718277052189,-500.0,0.00024499,2]
[329354264,1718277052234,-530.13539823,0.00024499,2]
[329354266,1718277052251,-500.0,0.00024499,2]
[329354272,1718277052356,-500.0,0.00024499,2]
[329354274,1718277052368,-554.24,0.00024499,2]
[329354276,1718277052383,-500.0,0.00024499,2]
[329354277,1718277052395,-500.0,0.00024499,2]
[329354280,1718277052433,-500.0,0.00024499,2]
[329354283,1718277052471,-500.0,0.00024499,2]
[329354285,1718277052488,-500.0,0.00024499,2]
[329354287,1718277052503,-649.30958727,0.00024499,2]
[329354290,1718277052523,-500.0,0.00024499,2]
[329354292,1718277052540,-500.0,0.00024499,2]
[329354294,1718277052553,-523.43825493,0.00024499,2]
[329354296,1718277052577,-500.0,0.00024499,2]
[329354298,1718277052594,-500.0,0.00024499,2]
[329354300,1718277052609,-519.76468276,0.00024499,2]
[329354302,1718277052623,-794.39,0.00024499,2]
[329354305,1718277052654,-500.0,0.00024499,2]
[329354307,1718277052671,-500.0,0.00024499,2]
[329354309,1718277052685,-500.0,0.00024499,2]
[329354311,1718277052699,-500.0,0.00024499,2]
[329354313,1718277052710,-500.0,0.00024499,2]
[329354314,1718277052720,-500.0,0.00024499,2]
[329354315,1718277052733,-500.0,0.00024499,2]
[329354316,1718277052747,-500.0,0.00024499,2]
[329354317,1718277052761,-500.0,0.00024499,2]
[329354318,1718277052776,-500.0,0.00024499,2]
[329354319,1718277052789,-500.0,0.00024499,2]
[329354320,1718277052802,-505.19657313,0.00024499,2]
[329354321,1718277052813,-500.0,0.00024499,2]
[329354323,1718277052827,-500.0,0.00024499,2]
[329354325,1718277052840,-500.0,0.00024499,2]
[329354326,1718277052854,-500.0,0.00024499,2]
[329354328,1718277052867,-500.0,0.00024499,2]
[329354330,1718277052879,-200.0,0.00024499,2]
[329354332,1718277052895,-508.67045264,0.00024499,2]
[329354334,1718277052907,-500.0,0.00024499,2]
[329354336,1718277052921,-555.7,0.00024499,2]
[329354338,1718277052934,-500.0,0.00024499,2]
[329354340,1718277052949,-500.0,0.00024499,2]
[329354342,1718277052972,-166.1476604,0.00024499,2]
[329354344,1718277052984,-500.0,0.00024499,2]
[329354346,1718277052995,-500.0,0.00024499,2]
[329354348,1718277053012,-500.0,0.00024499,2]
[329354350,1718277053025,-500.0,0.00024499,2]
[329354352,1718277053044,-500.0,0.00024499,2]
[329354355,1718277053064,-500.0,0.00024499,2]
[329354356,1718277053076,-319.51303565,0.00024499,2]
[329354358,1718277053087,-1106.58,0.00024499,2]
[329354360,1718277053099,-500.0,0.00024499,2]
[329354362,1718277053115,-500.0,0.00024499,2]
[329354364,1718277053131,-307.80842602,0.00024499,2]
[329354366,1718277053142,-500.0,0.00024499,2]
[329354368,1718277053153,-500.0,0.00024499,2]
[329354370,1718277053166,-500.0,0.00024499,2]
[329354371,1718277053177,-384.34248518,0.00024499,2]
[329354373,1718277053224,-544.91134917,0.00024499,2]
[329354375,1718277053236,-500.0,0.00024499,2]
[329354377,1718277053251,-500.0,0.00024499,2]
[329354379,1718277053264,-242.23899063,0.00024499,2]
[329354382,1718277053279,-500.0,0.00024499,2]
[329354384,1718277053296,-500.0,0.00024499,2]
[329354385,1718277053311,-500.0,0.00024499,2]
[329354387,1718277053324,-500.0,0.00024499,2]
[329354389,1718277053340,-283.47,0.00024499,2]
[329354391,1718277053351,-509.20472639,0.00024499,2]
[329354393,1718277053362,-509.73603473,0.00024499,2]
[329354396,1718277053385,-250.78,0.00024499,2]
[329354398,1718277053403,-500.0,0.00024499,2]
[329354401,1718277053426,-500.0,0.00024499,2]
[329354403,1718277053446,-229.68814672,0.00024499,2]
[329354406,1718277053481,-500.0,0.00024499,2]
[329354407,1718277053500,-500.0,0.00024499,2]
[329354409,1718277053521,-500.0,0.00024499,2]
[329354411,1718277053547,-500.0,0.00024499,2]
[329354413,1718277053566,-522.97303615,0.00024499,2]
[329354415,1718277053593,-477.27531235,0.00024499,2]
[329354417,1718277053617,-510.15976515,0.00024499,2]
[329354419,1718277053637,-504.68214449,0.00024499,2]
[329354421,1718277053654,-500.0,0.00024499,2]
[329354423,1718277053673,-500.0,0.00024499,2]
[329354425,1718277053695,-510.62630202,0.00024499,2]
[329354427,1718277053714,-502.70008703,0.00024499,2]
[329354429,1718277053737,-1207.15,0.00024499,2]
[329354433,1718277053779,-345.00581726,0.00024499,2]
[329354434,1718277053799,-514.70892242,0.00024499,2]
[329354437,1718277053822,-512.01082347,0.00024499,2]
[329354439,1718277053839,-537.40250185,0.00024499,2]
[329354442,1718277053862,-500.0,0.00024499,2]
[329354444,1718277053879,-500.0,0.00024499,2]
[329354447,1718277053896,-520.7547424,0.00024499,2]
[329354449,1718277053914,-461.12542616,0.00024499,2]
[329354451,1718277053934,-500.0,0.00024499,2]
[329354453,1718277053952,-500.0,0.00024499,2]
[329354456,1718277053973,-500.0,0.00024499,2]
[329354458,1718277053992,-496.52850392,0.00024499,2]
[329354460,1718277054009,-940.28,0.00024499,2]
[329354464,1718277054066,-500.0,0.00024499,2]
[329354466,1718277054087,-223.51140515,0.00024499,2]
[329354469,1718277054108,-534.92286491,0.00024499,2]
[329354471,1718277054126,-432.28179102,0.00024499,2]
[329354473,1718277054148,-500.0,0.00024499,2]
[329354475,1718277054165,-500.0,0.00024499,2]
[329354478,1718277054189,-500.0,0.00024499,2]
[329354480,1718277054225,-633.48,0.00024499,2]
[329354482,1718277054243,-500.0,0.00024499,2]
[329354485,1718277054266,-1695.46,0.00024499,2]
[329354486,1718277054282,-500.0,0.00024499,2]
[329354488,1718277054298,-500.0,0.00024499,2]
[329354491,1718277054316,-502.83973066,0.00024499,2]
[329354493,1718277054331,-1351.29,0.00024499,2]
[329354495,1718277054349,-500.0,0.00024499,2]
[329354497,1718277054367,-500.0,0.00024499,2]
[329354499,1718277054384,-500.0,0.00024499,2]
[329354501,1718277054402,-501.63578401,0.00024499,2]
[329354504,1718277054445,-977.95,0.00024499,2]
[329354505,1718277054476,-508.84521244,0.00024499,2]
[329354508,1718277054498,-557.92,0.00024499,2]
[329354510,1718277054517,-500.0,0.00024499,2]
[329354512,1718277054537,-501.61470631,0.00024499,2]
[329354515,1718277054559,-500.0,0.00024499,2]
[329354517,1718277054576,-500.0,0.00024499,2]
[329354520,1718277054595,-500.0,0.00024499,2]
[329354521,1718277054613,-869.98,0.00024499,2]
[329354523,1718277054625,-2538.97,0.00024499,2]
[329354525,1718277054639,-500.0,0.00024499,2]
[329354527,1718277054655,-774.79,0.00024499,2]
[329354529,1718277054673,-500.0,0.00024499,2]
[329354532,1718277054694,-272.86824311,0.00024499,2]
[329354534,1718277054717,-500.0,0.00024499,2]
[329354536,1718277054736,-500.0,0.00024499,2]
[329354539,1718277054749,-500.0,0.00024499,2]
[329354550,1718277054954,-500.0,0.00024499,2]
[329354551,1718277054969,-500.0,0.00024499,2]
[329354553,1718277054988,-500.0,0.00024499,2]
[329354555,1718277055001,-869.72,0.00024499,2]
[329354558,1718277055025,-497.75949754,0.00024499,2]
[329354560,1718277055041,-176.89802332,0.00024499,2]
[329354563,1718277055056,-164.38324858,0.00024499,2]
[329354565,1718277055082,-419.13640878,0.00024499,2]
[329354566,1718277055095,-500.0,0.00024499,2]
[329354569,1718277055117,-500.0,0.00024499,2]
[329354572,1718277055141,-2643.48,0.00024499,2]
[329354574,1718277055161,-1050.99,0.00024499,2]
[329354576,1718277055187,-500.0,0.00024499,2]
[329354578,1718277055239,-501.75905009,0.00024499,2]
[329354581,1718277055256,-500.0,0.00024499,2]
[329354583,1718277055292,-6022.3,0.00024499,2]
[329354586,1718277055313,-2325.51,0.00024499,2]
[329354588,1718277055327,-594.46,0.00024499,2]
[329354589,1718277055340,-500.0,0.00024499,2]
[329354591,1718277055354,-1340.93,0.00024499,2]
[329354593,1718277055367,-407.5987948,0.00024499,2]
[329354595,1718277055379,-525.87,0.00024499,2]
[329354598,1718277055401,-500.0,0.00024499,2]
[329354600,1718277055412,-500.0,0.00024499,2]
[329354602,1718277055432,-2801.14,0.00024499,2]
[329354604,1718277055453,-556.9,0.00024499,2]
[329354606,1718277055474,-1037.02,0.00024499,2]
[329354608,1718277055491,-588.88823469,0.00024499,2]
[329354610,1718277055504,-788.09,0.00024499,2]
[329354612,1718277055523,-514.75317099,0.00024499,2]
[329354614,1718277055546,-500.0,0.00024499,2]
[329354617,1718277055564,-1590.22,0.00024499,2]
[329354619,1718277055583,-500.0,0.00024499,2]
[329354620,1718277055603,-500.0,0.00024499,2]
[329354622,1718277055617,-500.0,0.00024499,2]
[329354624,1718277055629,-1299.11,0.00024499,2]
[329354626,1718277055641,-500.0,0.00024499,2]
[329354628,1718277055667,-500.0,0.00024499,2]
[329354630,1718277055696,-502.23473676,0.00024499,2]
[329354632,1718277055711,-1761.78,0.00024499,2]
[329354633,1718277055729,-500.0,0.00024499,2]
[329354635,1718277055748,-502.43278001,0.00024499,2]
[329354638,1718277055782,-500.0,0.00024499,2]
[329354640,1718277055796,-500.0,0.00024499,2]
[329354641,1718277055811,-1262.69,0.00024499,2]
[329354643,1718277055822,-504.23667068,0.00024499,2]
[329354645,1718277055833,-500.0,0.00024499,2]
[329354647,1718277055846,-4418.73,0.00024499,2]
[329354648,1718277055858,-8305.14,0.00024499,2]
[329354650,1718277055871,-500.0,0.00024499,2]
[329354652,1718277055885,-500.0,0.00024499,2]
[329354654,1718277055896,-453.12097995,0.00024499,2]
[329354655,1718277055915,-500.0,0.00024499,2]
[329354657,1718277055928,-500.0,0.00024499,2]
[329354659,1718277055944,-500.0,0.00024499,2]
[329354661,1718277055957,-577.13,0.00024499,2]
[329354663,1718277055969,-1444.06,0.00024499,2]
[329354665,1718277055980,-500.0,0.00024499,2]
[329354667,1718277055992,-501.52261605,0.00024499,2]
[329354669,1718277056005,-501.90647075,0.00024499,2]
[329354671,1718277056016,-725.83,0.00024499,2]
[329354673,1718277056028,-506.32072168,0.00024499,2]
[329354675,1718277056041,-500.0,0.00024499,2]
[329354677,1718277056053,-1042.68,0.00024499,2]
[329354678,1718277056065,-500.0,0.00024499,2]
[329354680,1718277056076,-500.0,0.00024499,2]
[329354682,1718277056088,-500.0,0.00024499,2]
[329354684,1718277056103,-500.0,0.00024499,2]
[329354686,1718277056115,-500.0,0.00024499,2]
[329354688,1718277056127,-3100.67,0.00024499,2]
[329354690,1718277056138,-300.21099548,0.00024499,2]
[329354692,1718277056150,-500.0,0.00024499,2]
[329354694,1718277056163,-503.95013474,0.00024499,2]
[329354695,1718277056174,-500.0,0.00024499,2]
[329354697,1718277056185,-500.0,0.00024499,2]
[329354700,1718277056199,-1727.08,0.00024499,2]
[329354702,1718277056221,-518.8,0.00024499,2]
[329354704,1718277056231,-500.0,0.00024499,2]
[329354706,1718277056242,-500.0,0.00024499,2]
[329354707,1718277056255,-505.97787729,0.00024499,2]
[329354710,1718277056267,-500.0,0.00024499,2]
[329354712,1718277056279,-490.02848757,0.00024499,2]
[329354714,1718277056292,-500.0,0.00024499,2]
[329354716,1718277056304,-591.57327539,0.00024499,2]
[329354717,1718277056315,-500.0,0.00024499,2]
[329354719,1718277056333,-158.9212225,0.00024499,2]
[329354720,1718277056352,-1122.65,0.00024499,2]
[329354722,1718277056369,-509.16872417,0.00024499,2]
[329354724,1718277056382,-500.0,0.00024499,2]
[329354726,1718277056396,-1466.73,0.00024499,2]
[329354729,1718277056420,-179.10825023,0.00024499,2]
[329354730,1718277056432,-500.0,0.00024499,2]
[329354731,1718277056458,-505.98,0.00024499,2]
[329354733,1718277056474,-514.82764543,0.00024499,2]
[329354736,1718277056494,-151.0,0.00024499,7]
[329354738,1718277056514,-500.0,0.00024499,2]
[329354740,1718277056530,-500.0,0.00024499,2]
[329354742,1718277056548,-1309.02,0.00024499,2]
[329354745,1718277056575,-500.0,0.00024499,2]
[329354746,1718277056600,-500.0,0.00024499,2]
[329354748,1718277056622,-503.00167962,0.00024499,2]
[329354749,1718277056635,-500.0,0.00024499,2]
[329354751,1718277056646,-662.75,0.00024499,2]
[329354753,1718277056660,-617.34,0.00024499,2]
[329354756,1718277056689,-500.0,0.00024499,2]
[329354758,1718277056704,-983.88,0.00024499,2]
[329354760,1718277056716,-509.07800342,0.00024499,2]
[329354762,1718277056728,-500.0,0.00024499,2]
[329354764,1718277056746,-509.17281926,0.00024499,2]
[329354766,1718277056758,-1386.52,0.00024499,2]
[329354767,1718277056774,-513.42209022,0.00024499,2]
[329354769,1718277056787,-500.0,0.00024499,2]
[329354771,1718277056804,-1442.64,0.00024499,2]
[329354772,1718277056819,-3563.96,0.00024499,2]
[329354773,1718277056837,-3563.96,0.00024499,2]
[329354774,1718277056852,-500.0,0.00024499,2]
[329354775,1718277056865,-3563.96,0.00024499,2]
[329354776,1718277056888,-1828.6,0.00024499,2]
[329354777,1718277056903,-3563.96,0.00024499,2]
[329354778,1718277056921,-832.352126,0.00024499,7]
[329354779,1718277056931,-500.0,0.00024499,2]
[329354780,1718277056943,-510.33097332,0.00024499,2]
[329354781,1718277056961,-500.0,0.00024499,2]
[329354782,1718277056972,-832.352126,0.00024499,7]
[329354783,1718277056983,-515.4461658,0.00024499,2]
[329354784,1718277057001,-1892.77,0.00024499,2]
[329354785,1718277057023,-508.47925836,0.00024499,2]
[329354786,1718277057034,-1002.34,0.00024499,2]
[329354787,1718277057050,-276.27000531,0.00024499,2]
[329354788,1718277057061,-2616.45,0.00024499,2]
[329354789,1718277057078,-505.56184487,0.00024499,2]
[329354790,1718277057095,-500.0,0.00024499,2]
[329354791,1718277057111,-151.0,0.00024499,7]
[329354792,1718277057131,-504.88133796,0.00024499,2]
[329354793,1718277057145,-500.0,0.00024499,2]
[329354794,1718277057162,-502.89631762,0.00024499,2]
[329354795,1718277057182,-151.0,0.00024499,7]
[329354796,1718277057228,-500.0,0.00024499,2]
[329354797,1718277057240,-500.0,0.00024499,2]
[329354798,1718277057251,-1657.94,0.00024499,2]
[329354799,1718277057262,-509.30971208,0.00024499,2]
[329354800,1718277057274,-466.51719719,0.00024499,2]
[329354801,1718277057287,-1131.64,0.00024499,2]
[329354802,1718277057299,-236.486573,0.00024499,7]
[329354803,1718277057311,-514.85243165,0.00024499,2]
[329354804,1718277057324,-213.22445479,0.00024499,2]
[329354805,1718277057340,-1100.13,0.00024499,2]
[329354806,1718277057356,-514.28439546,0.00024499,2]
[329354807,1718277057371,-500.0,0.00024499,2]
[329354808,1718277057382,-498.35644112,0.00024499,2]
[329354809,1718277057406,-500.0,0.00024499,2]
[329354810,1718277057428,-515.01630366,0.00024499,2]
[329354811,1718277057440,-500.0,0.00024499,2]
[329354812,1718277057459,-3181.1,0.00024499,2]
[329354813,1718277057480,-525.42256034,0.00024499,2]
[329354814,1718277057498,-790.44,0.00024499,2]
[329354815,1718277057520,-500.0,0.00024499,2]
[329354816,1718277057556,-500.0,0.00024499,2]
[329354817,1718277057579,-942010.4057878,0.000245,3]
[329354818,1718277057600,-3000.85,0.000245,2]
[329354819,1718277057613,-454.29751659,0.000245,2]
[329354820,1718277057640,-240.99244023,0.000245,2]
[329354821,1718277057654,-151.0,0.000245,7]
[329354822,1718277057668,-151.0,0.000245,7]
[329354823,1718277057678,-489.0,0.000245,7]
[329354824,1718277057690,-30698.1537408,0.000245,2]
[329354825,1718277057708,-151.0,0.000245,7]
[329354826,1718277057718,-151.0,0.000245,7]
[329354827,1718277057728,-151.0,0.000245,7]
[329354828,1718277057739,-151.0,0.000245,7]
[329354829,1718277057751,-305.0,0.000245,2]
[329354830,1718277057763,-151.0,0.000245,7]